[Event "Early-Titled-Tuesday-Blitz-May-14-2024"]
[Site "Chess.com"]
[Date "2024.05.14"]
[Round "1"]
[White "PeshkaCh"]
[Black "joksijoksi"]
[Result "1-0"]
[WhiteElo "2890"]
[BlackElo "2512"]
[TimeControl "180+1"]
[EndTime "8:01:25 PDT"]
[Termination "PeshkaCh won by resignation"]

1. Nf3 {[%clk 0:03:00.9]} 1... d5 {[%clk 0:02:59.3]} 2. d4 {[%clk 0:03:00.4]}
2... Nf6 {[%clk 0:02:59]} 3. c4 {[%clk 0:03:00.5]} 3... c6 {[%clk 0:02:58.8]} 4.
e3 {[%clk 0:03:00.2]} 4... Bf5 {[%clk 0:02:58.2]} 5. Bd3 {[%clk 0:03:00.6]} 5...
Bxd3 {[%clk 0:02:57.8]} 6. Qxd3 {[%clk 0:03:01.5]} 6... e6 {[%clk 0:02:58.3]} 7.
O-O {[%clk 0:03:02.1]} 7... Nbd7 {[%clk 0:02:58.3]} 8. Nbd2 {[%clk 0:03:02.8]}
8... Bd6 {[%clk 0:02:58.6]} 9. e4 {[%clk 0:03:03.4]} 9... dxe4 {[%clk
0:02:59.5]} 10. Nxe4 {[%clk 0:03:04.1]} 10... Nxe4 {[%clk 0:03:00]} 11. Qxe4
{[%clk 0:03:04.7]} 11... O-O {[%clk 0:02:59.9]} 12. b3 {[%clk 0:03:05.2]} 12...
Nf6 {[%clk 0:02:59.5]} 13. Qc2 {[%clk 0:03:05.8]} 13... a5 {[%clk 0:02:59.8]}
14. Bb2 {[%clk 0:03:04.7]} 14... Qe7 {[%clk 0:03:00]} 15. Rfe1 {[%clk
0:03:04.4]} 15... Ba3 {[%clk 0:03:00]} 16. Bc3 {[%clk 0:03:03.4]} 16... Bb4
{[%clk 0:02:59.6]} 17. Ne5 {[%clk 0:03:02.8]} 17... Bxc3 {[%clk 0:02:58.2]} 18.
Qxc3 {[%clk 0:03:03.7]} 18... a4 {[%clk 0:02:58.4]} 19. b4 {[%clk 0:03:03.8]}
19... a3 {[%clk 0:02:58.2]} 20. Qb3 {[%clk 0:03:00.2]} 20... Rfd8 {[%clk
0:02:55.8]} 21. Rad1 {[%clk 0:02:59.9]} 21... b5 {[%clk 0:02:52.5]} 22. Nxc6
{[%clk 0:02:57.7]} 22... Qb7 {[%clk 0:02:50]} 23. Nxd8 {[%clk 0:02:57.1]} 23...
Rxd8 {[%clk 0:02:50.9]} 24. cxb5 {[%clk 0:02:56.6]} 24... Qxb5 {[%clk
0:02:51.8]} 25. Qxa3 {[%clk 0:02:56.7]} 25... Nd5 {[%clk 0:02:51.4]} 26. Qa5
{[%clk 0:02:56.6]} 26... Qc4 {[%clk 0:02:50.3]} 1-0

[Event "Early-Titled-Tuesday-Blitz-May-14-2024"]
[Site "Chess.com"]
[Date "2024.05.14"]
[Round "1"]
[White "DeArron_Fox"]
[Black "NanMKKhineHlyan"]
[Result "1-0"]
[WhiteElo "2549"]
[BlackElo "1803"]
[TimeControl "180+1"]
[EndTime "8:02:07 PDT"]
[Termination "DeArron_Fox won by resignation"]

1. d4 {[%clk 0:03:00.9]} 1... d5 {[%clk 0:02:58]} 2. c4 {[%clk 0:03:01.4]} 2...
Nf6 {[%clk 0:02:56.9]} 3. Nc3 {[%clk 0:03:01.9]} 3... e6 {[%clk 0:02:55.2]} 4.
cxd5 {[%clk 0:03:01.9]} 4... exd5 {[%clk 0:02:54.5]} 5. Bg5 {[%clk 0:03:02.3]}
5... c6 {[%clk 0:02:53.2]} 6. e3 {[%clk 0:03:01.1]} 6... Nbd7 {[%clk 0:02:49.7]}
7. Bd3 {[%clk 0:03:01.1]} 7... Be7 {[%clk 0:02:48.8]} 8. Qc2 {[%clk 0:03:00.3]}
8... O-O {[%clk 0:02:46]} 9. Nf3 {[%clk 0:02:58.7]} 9... h6 {[%clk 0:02:44.9]}
10. Bh4 {[%clk 0:02:58.3]} 10... Re8 {[%clk 0:02:42.5]} 11. O-O {[%clk
0:02:51.5]} 11... Ne4 {[%clk 0:02:40.3]} 12. Bxe4 {[%clk 0:02:50.4]} 12... Bxh4
{[%clk 0:02:37.1]} 13. Bh7+ {[%clk 0:02:49.7]} 13... Kh8 {[%clk 0:02:35.2]} 14.
Bd3 {[%clk 0:02:36.2]} 14... Be7 {[%clk 0:02:30.9]} 15. a3 {[%clk 0:02:23.9]}
15... Nf6 {[%clk 0:02:29.1]} 16. Ne5 {[%clk 0:02:17.9]} 16... Bd6 {[%clk
0:02:28.3]} 17. Nxf7+ {[%clk 0:02:17.5]} 1-0

[Event "Early-Titled-Tuesday-Blitz-May-14-2024"]
[Site "Chess.com"]
[Date "2024.05.14"]
[Round "1"]
[White "hsd2016"]
[Black "B_nn_t"]
[Result "1-0"]
[WhiteElo "2321"]
[BlackElo "2608"]
[TimeControl "180+1"]
[EndTime "8:02:24 PDT"]
[Termination "hsd2016 won by checkmate"]

1. e4 {[%clk 0:03:00.3]} 1... c5 {[%clk 0:02:59.1]} 2. Nf3 {[%clk 0:02:59.4]}
2... d6 {[%clk 0:02:59.5]} 3. d4 {[%clk 0:02:58.4]} 3... cxd4 {[%clk 0:03:00.4]}
4. Nxd4 {[%clk 0:02:59]} 4... Nf6 {[%clk 0:03:00.5]} 5. Nc3 {[%clk 0:02:59.2]}
5... Nc6 {[%clk 0:03:00.8]} 6. Bg5 {[%clk 0:02:56.8]} 6... e6 {[%clk 0:03:01.1]}
7. f4 {[%clk 0:02:54.4]} 7... h6 {[%clk 0:02:53.5]} 8. Bh4 {[%clk 0:02:54.3]}
8... Be7 {[%clk 0:02:50.8]} 9. Bf2 {[%clk 0:02:53.3]} 9... a6 {[%clk 0:02:49.1]}
10. Bd3 {[%clk 0:02:51.6]} 10... O-O {[%clk 0:02:47.4]} 11. O-O {[%clk
0:02:51.3]} 11... Nxd4 {[%clk 0:02:43.9]} 12. Bxd4 {[%clk 0:02:51.3]} 12... b5
{[%clk 0:02:44.3]} 13. a3 {[%clk 0:02:51]} 13... Bb7 {[%clk 0:02:44.3]} 14. Qe1
{[%clk 0:02:48.3]} 14... e5 {[%clk 0:02:40.9]} 15. fxe5 {[%clk 0:02:45]} 15...
dxe5 {[%clk 0:02:41.8]} 16. Bxe5 {[%clk 0:02:37.7]} 16... Ng4 {[%clk 0:02:37.2]}
17. Qg3 {[%clk 0:02:28.2]} 17... Nxe5 {[%clk 0:02:30.3]} 18. Qxe5 {[%clk
0:02:29.1]} 18... Bf6 {[%clk 0:02:29.9]} 19. Qf5 {[%clk 0:02:28.4]} 19... Rc8
{[%clk 0:02:27.4]} 20. e5 {[%clk 0:02:24.7]} 20... Qd4+ {[%clk 0:02:18.5]} 21.
Kh1 {[%clk 0:02:24.1]} 21... Bxe5 {[%clk 0:02:09]} 22. Qh7# {[%clk 0:02:23.9]}
1-0

[Event "Early-Titled-Tuesday-Blitz-May-14-2024"]
[Site "Chess.com"]
[Date "2024.05.14"]
[Round "1"]
[White "Andrey_Klymchuk"]
[Black "jbking07"]
[Result "1-0"]
[WhiteElo "2709"]
[BlackElo "2392"]
[TimeControl "180+1"]
[EndTime "8:02:38 PDT"]
[Termination "Andrey_Klymchuk won by resignation"]

1. e4 {[%clk 0:03:00.9]} 1... c5 {[%clk 0:02:59.9]} 2. Nf3 {[%clk 0:03:00.2]}
2... d6 {[%clk 0:03:00]} 3. d4 {[%clk 0:02:58.5]} 3... cxd4 {[%clk 0:03:00.9]}
4. Nxd4 {[%clk 0:02:59.1]} 4... Nf6 {[%clk 0:03:01.4]} 5. f3 {[%clk 0:02:58.3]}
5... Nc6 {[%clk 0:03:01.1]} 6. c4 {[%clk 0:02:57.3]} 6... g6 {[%clk 0:02:56.2]}
7. Be3 {[%clk 0:02:56.7]} 7... Bg7 {[%clk 0:02:55.9]} 8. Nc3 {[%clk 0:02:57]}
8... Bd7 {[%clk 0:02:50.3]} 9. Be2 {[%clk 0:02:54.2]} 9... a6 {[%clk 0:02:49.9]}
10. O-O {[%clk 0:02:51.4]} 10... Nxd4 {[%clk 0:02:47.2]} 11. Bxd4 {[%clk
0:02:50.7]} 11... O-O {[%clk 0:02:46.1]} 12. b4 {[%clk 0:02:49.8]} 12... Rc8
{[%clk 0:02:42.1]} 13. Qd2 {[%clk 0:02:37.3]} 13... Be6 {[%clk 0:02:31.2]} 14.
Nd5 {[%clk 0:02:36.7]} 14... Bxd5 {[%clk 0:02:27]} 15. exd5 {[%clk 0:02:35.3]}
15... Nd7 {[%clk 0:02:24.4]} 16. Rac1 {[%clk 0:02:18.1]} 16... a5 {[%clk
0:02:11.6]} 17. a3 {[%clk 0:02:13.6]} 17... Qb6 {[%clk 0:02:05.1]} 18. Bxb6
{[%clk 0:02:09.8]} 1-0

[Event "Early-Titled-Tuesday-Blitz-May-14-2024"]
[Site "Chess.com"]
[Date "2024.05.14"]
[Round "1"]
[White "sofaceindisguise"]
[Black "KINGOF2SOAP"]
[Result "1-0"]
[WhiteElo "2761"]
[BlackElo "2428"]
[TimeControl "180+1"]
[EndTime "8:02:40 PDT"]
[Termination "sofaceindisguise won by resignation"]

1. e4 {[%clk 0:03:00.9]} 1... d6 {[%clk 0:02:57.6]} 2. d4 {[%clk 0:03:00.1]}
2... g6 {[%clk 0:02:57.1]} 3. Nc3 {[%clk 0:02:59.7]} 3... Bg7 {[%clk 0:02:57.2]}
4. Be3 {[%clk 0:02:59]} 4... Nf6 {[%clk 0:02:56.6]} 5. f3 {[%clk 0:02:57.9]}
5... O-O {[%clk 0:02:56.7]} 6. h4 {[%clk 0:02:56.1]} 6... Nbd7 {[%clk
0:02:49.4]} 7. g4 {[%clk 0:02:56]} 7... h6 {[%clk 0:02:43.9]} 8. Qd2 {[%clk
0:02:53]} 8... Kh7 {[%clk 0:02:40.4]} 9. O-O-O {[%clk 0:02:49.5]} 9... Rh8
{[%clk 0:02:31.7]} 10. Nge2 {[%clk 0:02:47.8]} 10... c5 {[%clk 0:02:31.9]} 11.
dxc5 {[%clk 0:02:47.1]} 11... Nxc5 {[%clk 0:02:32.8]} 12. Ng3 {[%clk 0:02:47.2]}
12... Ne6 {[%clk 0:02:26.2]} 13. Kb1 {[%clk 0:02:46.1]} 13... Bd7 {[%clk
0:02:23.3]} 14. Bc4 {[%clk 0:02:45.9]} 14... Rc8 {[%clk 0:02:21.4]} 15. Bb3
{[%clk 0:02:46]} 15... a5 {[%clk 0:02:17.6]} 16. g5 {[%clk 0:02:42.8]} 16... Ng8
{[%clk 0:02:11.4]} 17. h5 {[%clk 0:02:40.2]} 17... a4 {[%clk 0:01:56.7]} 18.
Nxa4 {[%clk 0:02:35.5]} 18... Bxa4 {[%clk 0:01:56.2]} 19. Bxa4 {[%clk
0:02:35.6]} 19... Qa5 {[%clk 0:01:45.2]} 20. Qxa5 {[%clk 0:02:34.7]} 1-0

[Event "Early-Titled-Tuesday-Blitz-May-14-2024"]
[Site "Chess.com"]
[Date "2024.05.14"]
[Round "1"]
[White "chito89"]
[Black "Masterbeaterr"]
[Result "1-0"]
[WhiteElo "2792"]
[BlackElo "2455"]
[TimeControl "180+1"]
[EndTime "8:03:03 PDT"]
[Termination "chito89 won by resignation"]

1. Nf3 {[%clk 0:02:54.1]} 1... d5 {[%clk 0:02:58.9]} 2. b3 {[%clk 0:02:51.4]}
2... Bf5 {[%clk 0:02:58.5]} 3. Bb2 {[%clk 0:02:50.7]} 3... e6 {[%clk 0:02:59.1]}
4. h3 {[%clk 0:02:49.7]} 4... Nf6 {[%clk 0:02:59.2]} 5. g4 {[%clk 0:02:48.9]}
5... Bg6 {[%clk 0:02:58]} 6. d3 {[%clk 0:02:43.9]} 6... Bd6 {[%clk 0:02:54.8]}
7. e3 {[%clk 0:02:24.8]} 7... c5 {[%clk 0:02:53.4]} 8. Ne5 {[%clk 0:02:21.2]}
8... Nc6 {[%clk 0:02:52.2]} 9. Nxc6 {[%clk 0:02:19.1]} 9... bxc6 {[%clk
0:02:51.8]} 10. Nd2 {[%clk 0:02:20]} 10... h5 {[%clk 0:02:45.2]} 11. g5 {[%clk
0:02:18.4]} 11... Nd7 {[%clk 0:02:43.8]} 12. h4 {[%clk 0:02:12.5]} 12... O-O
{[%clk 0:02:38]} 13. Be2 {[%clk 0:02:09.6]} 13... Be5 {[%clk 0:02:34.3]} 14.
Bxe5 {[%clk 0:01:57]} 14... Nxe5 {[%clk 0:02:34.8]} 15. Bxh5 {[%clk 0:01:57.7]}
15... a5 {[%clk 0:02:16.8]} 16. f4 {[%clk 0:01:56.1]} 16... Nd7 {[%clk
0:02:12.9]} 17. Bxg6 {[%clk 0:01:53.3]} 17... fxg6 {[%clk 0:02:13.8]} 18. Qg4
{[%clk 0:01:53]} 18... Qe7 {[%clk 0:02:10.6]} 19. h5 {[%clk 0:01:53.5]} 19...
gxh5 {[%clk 0:02:08.9]} 20. Qxh5 {[%clk 0:01:53.1]} 1-0

[Event "Early-Titled-Tuesday-Blitz-May-14-2024"]
[Site "Chess.com"]
[Date "2024.05.14"]
[Round "1"]
[White "Szparu"]
[Black "ubdip"]
[Result "1-0"]
[WhiteElo "2857"]
[BlackElo "2494"]
[TimeControl "180+1"]
[EndTime "8:04:14 PDT"]
[Termination "Szparu won by resignation"]

1. e4 {[%clk 0:03:00.9]} 1... c5 {[%clk 0:02:59.4]} 2. c3 {[%clk 0:03:00.5]}
2... Nc6 {[%clk 0:02:59.9]} 3. d4 {[%clk 0:03:00.6]} 3... cxd4 {[%clk
0:02:59.5]} 4. cxd4 {[%clk 0:03:01.5]} 4... d5 {[%clk 0:02:59.7]} 5. exd5 {[%clk
0:03:02.1]} 5... Qxd5 {[%clk 0:03:00.4]} 6. Nf3 {[%clk 0:03:02.7]} 6... Bg4
{[%clk 0:02:59.3]} 7. Nc3 {[%clk 0:03:02.3]} 7... Qa5 {[%clk 0:02:58.3]} 8. d5
{[%clk 0:03:00.7]} 8... O-O-O {[%clk 0:02:55.6]} 9. Bd2 {[%clk 0:02:48.3]} 9...
Bxf3 {[%clk 0:02:49.3]} 10. Qxf3 {[%clk 0:02:41.8]} 10... Nb4 {[%clk 0:02:43.3]}
11. Rc1 {[%clk 0:02:30.7]} 11... Kb8 {[%clk 0:02:38.3]} 12. Nb5 {[%clk
0:01:49.3]} 12... a6 {[%clk 0:02:34.7]} 13. Qf4+ {[%clk 0:01:39.9]} 13... e5
{[%clk 0:02:31.3]} 14. dxe6+ {[%clk 0:01:39.1]} 14... Ka8 {[%clk 0:02:29.7]} 15.
Nc7+ {[%clk 0:01:29.6]} 15... Ka7 {[%clk 0:02:27.5]} 16. a3 {[%clk 0:01:23.3]}
16... Bd6 {[%clk 0:02:05.7]} 17. Qd4+ {[%clk 0:01:12.6]} 17... Qb6 {[%clk
0:01:56.4]} 18. Qxb6+ {[%clk 0:01:08.8]} 18... Kxb6 {[%clk 0:01:53.5]} 19. axb4
{[%clk 0:01:03.7]} 1-0

[Event "Early-Titled-Tuesday-Blitz-May-14-2024"]
[Site "Chess.com"]
[Date "2024.05.14"]
[Round "1"]
[White "FREDERICKtheMATE"]
[Black "laiciffOneslraCsungaM"]
[Result "0-1"]
[WhiteElo "2680"]
[BlackElo "2396"]
[TimeControl "180+1"]
[EndTime "8:04:21 PDT"]
[Termination "laiciffOneslraCsungaM won by resignation"]

1. d4 {[%clk 0:03:00.9]} 1... Nf6 {[%clk 0:02:58.8]} 2. c4 {[%clk 0:03:01.1]}
2... c5 {[%clk 0:02:57]} 3. d5 {[%clk 0:03:00.3]} 3... e5 {[%clk 0:02:57.5]} 4.
Nc3 {[%clk 0:02:59.6]} 4... d6 {[%clk 0:02:57.7]} 5. e4 {[%clk 0:02:59.1]} 5...
g6 {[%clk 0:02:58.1]} 6. Be2 {[%clk 0:02:58]} 6... Bg7 {[%clk 0:02:58.3]} 7. Be3
{[%clk 0:02:57.4]} 7... O-O {[%clk 0:02:58.2]} 8. f3 {[%clk 0:02:54.6]} 8... Nh5
{[%clk 0:02:54]} 9. Qd2 {[%clk 0:02:52.9]} 9... f5 {[%clk 0:02:53.5]} 10. O-O-O
{[%clk 0:02:51.9]} 10... f4 {[%clk 0:02:48.1]} 11. Bf2 {[%clk 0:02:51.5]} 11...
a6 {[%clk 0:02:48.7]} 12. g4 {[%clk 0:02:49.6]} 12... Nf6 {[%clk 0:02:47.8]} 13.
h4 {[%clk 0:02:49.5]} 13... b5 {[%clk 0:02:41.6]} 14. cxb5 {[%clk 0:02:49.1]}
14... axb5 {[%clk 0:02:42.5]} 15. Bxb5 {[%clk 0:02:49.5]} 15... Ba6 {[%clk
0:02:42.9]} 16. Bxa6 {[%clk 0:02:48.5]} 16... Nxa6 {[%clk 0:02:43.8]} 17. a3
{[%clk 0:02:47.9]} 17... Nd7 {[%clk 0:02:39.4]} 18. Qe2 {[%clk 0:02:37.5]} 18...
Qc7 {[%clk 0:02:27.7]} 19. Qc4 {[%clk 0:02:34.2]} 19... Rfb8 {[%clk 0:02:27.3]}
20. Nge2 {[%clk 0:02:32.4]} 20... Nb6 {[%clk 0:02:24.9]} 21. Qa2 {[%clk
0:02:31.6]} 21... c4 {[%clk 0:02:21.6]} 22. Kd2 {[%clk 0:02:20]} 22... Nc5
{[%clk 0:02:19.6]} 23. Ke1 {[%clk 0:02:19.6]} 23... Nd3+ {[%clk 0:02:19.2]} 24.
Kf1 {[%clk 0:02:19.2]} 24... Nd7 {[%clk 0:02:11.2]} 25. Kg2 {[%clk 0:02:14.9]}
25... Rxb2 {[%clk 0:02:09.9]} 26. Qa1 {[%clk 0:02:13.5]} 26... N7c5 {[%clk
0:01:55.7]} 27. Bxc5 {[%clk 0:02:08.1]} 27... Qxc5 {[%clk 0:01:54.5]} 28. Rxd3
{[%clk 0:02:06.4]} 28... Rxe2+ {[%clk 0:01:54.2]} 29. Nxe2 {[%clk 0:02:05.9]}
29... cxd3 {[%clk 0:01:55.1]} 30. Nc1 {[%clk 0:01:57.5]} 30... Rxa3 {[%clk
0:01:51.3]} 31. Qb2 {[%clk 0:01:56.7]} 31... Rc3 {[%clk 0:01:43.8]} 32. Kh3
{[%clk 0:01:51.8]} 32... Rc2 {[%clk 0:01:39.2]} 33. Qb8+ {[%clk 0:01:49.6]}
33... Bf8 {[%clk 0:01:39.6]} 34. Qc8 {[%clk 0:01:37.4]} 34... Qxc8 {[%clk
0:01:37.4]} 0-1

[Event "Early-Titled-Tuesday-Blitz-May-14-2024"]
[Site "Chess.com"]
[Date "2024.05.14"]
[Round "1"]
[White "MightyGMpretender"]
[Black "motivated_bishop"]
[Result "0-1"]
[WhiteElo "2809"]
[BlackElo "2491"]
[TimeControl "180+1"]
[EndTime "8:04:22 PDT"]
[Termination "motivated_bishop won by checkmate"]

1. e4 {[%clk 0:03:00.9]} 1... e5 {[%clk 0:03:00.2]} 2. Nf3 {[%clk 0:03:01.3]}
2... Nc6 {[%clk 0:03:00.6]} 3. Bb5 {[%clk 0:03:01.4]} 3... a6 {[%clk 0:03:00.9]}
4. Ba4 {[%clk 0:03:02.1]} 4... Nf6 {[%clk 0:03:01.3]} 5. d3 {[%clk 0:03:02.8]}
5... d6 {[%clk 0:02:57.1]} 6. c4 {[%clk 0:03:01.2]} 6... Nd7 {[%clk 0:02:49.9]}
7. Nc3 {[%clk 0:03:01.1]} 7... Nc5 {[%clk 0:02:49.3]} 8. Bxc6+ {[%clk
0:03:01.8]} 8... bxc6 {[%clk 0:02:49.2]} 9. d4 {[%clk 0:03:02.3]} 9... exd4
{[%clk 0:02:49.1]} 10. Nxd4 {[%clk 0:03:03]} 10... Bd7 {[%clk 0:02:48.8]} 11.
O-O {[%clk 0:02:57.3]} 11... Be7 {[%clk 0:02:48.8]} 12. b3 {[%clk 0:02:56.4]}
12... O-O {[%clk 0:02:48.8]} 13. f3 {[%clk 0:02:56]} 13... Bf6 {[%clk
0:02:45.6]} 14. Be3 {[%clk 0:02:56.5]} 14... Ne6 {[%clk 0:02:45.4]} 15. Qd2
{[%clk 0:02:55.3]} 15... a5 {[%clk 0:02:42.3]} 16. Rad1 {[%clk 0:02:54.4]} 16...
Qb8 {[%clk 0:02:33.2]} 17. Nf5 {[%clk 0:02:45.7]} 17... Qb4 {[%clk 0:02:30.4]}
18. Na4 {[%clk 0:02:41.7]} 18... c5 {[%clk 0:02:26.1]} 19. Qxb4 {[%clk
0:02:31.7]} 19... axb4 {[%clk 0:02:25.2]} 20. Nxc5 {[%clk 0:02:31.5]} 20... Nxc5
{[%clk 0:02:22.1]} 21. Bxc5 {[%clk 0:02:28.8]} 21... Bxf5 {[%clk 0:02:22.3]} 22.
Bxb4 {[%clk 0:02:25.5]} 22... Be6 {[%clk 0:02:07.4]} 23. Rf2 {[%clk 0:02:20.6]}
23... c5 {[%clk 0:02:04.5]} 24. Be1 {[%clk 0:01:57.6]} 24... Bd4 {[%clk
0:02:04.5]} 25. Rd2 {[%clk 0:01:58.4]} 25... Bxf2+ {[%clk 0:01:50.7]} 26. Bxf2
{[%clk 0:01:58.4]} 26... Ra6 {[%clk 0:01:50.9]} 27. Bg3 {[%clk 0:01:56.5]} 27...
Rfa8 {[%clk 0:01:50.3]} 28. h4 {[%clk 0:01:46.6]} 28... Rxa2 {[%clk 0:01:48.7]}
29. Rxd6 {[%clk 0:01:47.2]} 29... Rb2 {[%clk 0:01:43.5]} 30. Rc6 {[%clk
0:01:44.6]} 30... Raa2 {[%clk 0:01:38.9]} 31. Be5 {[%clk 0:01:40.6]} 31... Rxg2+
{[%clk 0:01:35.1]} 32. Kh1 {[%clk 0:01:41.3]} 32... Rgf2 {[%clk 0:01:23.1]} 33.
f4 {[%clk 0:01:39.6]} 33... Rf1# {[%clk 0:01:22.6]} 0-1

[Event "Early-Titled-Tuesday-Blitz-May-14-2024"]
[Site "Chess.com"]
[Date "2024.05.14"]
[Round "1"]
[White "Nemegejas"]
[Black "jup1978"]
[Result "1-0"]
[WhiteElo "2800"]
[BlackElo "2462"]
[TimeControl "180+1"]
[EndTime "8:04:34 PDT"]
[Termination "Nemegejas won by resignation"]

1. Nf3 {[%clk 0:02:59]} 1... e6 {[%clk 0:02:36.4]} 2. g3 {[%clk 0:02:58.6]} 2...
d5 {[%clk 0:02:36.4]} 3. Bg2 {[%clk 0:02:59.3]} 3... Nf6 {[%clk 0:02:36.8]} 4.
O-O {[%clk 0:03:00]} 4... Be7 {[%clk 0:02:37.4]} 5. d3 {[%clk 0:03:00.6]} 5...
O-O {[%clk 0:02:37.9]} 6. Nbd2 {[%clk 0:03:01.4]} 6... a5 {[%clk 0:02:37.5]} 7.
e4 {[%clk 0:03:02.1]} 7... a4 {[%clk 0:02:37.7]} 8. a3 {[%clk 0:03:01.1]} 8...
c5 {[%clk 0:02:36.8]} 9. Re1 {[%clk 0:03:01.8]} 9... Nc6 {[%clk 0:02:37]} 10. e5
{[%clk 0:03:02.6]} 10... Nd7 {[%clk 0:02:36.3]} 11. h4 {[%clk 0:03:03.4]} 11...
f6 {[%clk 0:02:36.5]} 12. Qe2 {[%clk 0:03:04.1]} 12... fxe5 {[%clk 0:02:34.1]}
13. c4 {[%clk 0:03:02.4]} 13... Nf6 {[%clk 0:02:26.7]} 14. Nxe5 {[%clk
0:02:56.3]} 14... Nxe5 {[%clk 0:02:24.6]} 15. Qxe5 {[%clk 0:02:57.2]} 15... Bd6
{[%clk 0:02:24.9]} 16. Qe2 {[%clk 0:02:56.7]} 16... Qc7 {[%clk 0:02:15]} 17. Nf3
{[%clk 0:02:56.2]} 17... d4 {[%clk 0:02:12.4]} 18. Ng5 {[%clk 0:02:56.1]} 18...
Re8 {[%clk 0:02:08.8]} 19. Ne4 {[%clk 0:02:47.3]} 19... Be7 {[%clk 0:02:03.7]}
20. Bf4 {[%clk 0:02:45]} 20... Qb6 {[%clk 0:01:59.7]} 21. Nxf6+ {[%clk
0:02:42.8]} 21... Bxf6 {[%clk 0:02:00.6]} 22. Be5 {[%clk 0:02:43.2]} 22... Bxe5
{[%clk 0:01:52.8]} 23. Qxe5 {[%clk 0:02:44.1]} 23... Bd7 {[%clk 0:01:46.9]} 24.
Re2 {[%clk 0:02:34.5]} 24... Re7 {[%clk 0:01:42.8]} 25. Rae1 {[%clk 0:02:34.1]}
25... Rae8 {[%clk 0:01:43.2]} 26. h5 {[%clk 0:02:34.6]} 26... h6 {[%clk
0:01:41]} 27. Be4 {[%clk 0:02:34.7]} 27... Bc6 {[%clk 0:01:36]} 28. Bg6 {[%clk
0:02:34.2]} 28... Rf8 {[%clk 0:01:35]} 29. f4 {[%clk 0:02:34.9]} 29... Bf3
{[%clk 0:01:05.6]} 30. Rf2 {[%clk 0:02:34.9]} 30... Bg4 {[%clk 0:01:05.9]} 31.
f5 {[%clk 0:02:35.7]} 31... Qc7 {[%clk 0:01:03.9]} 32. Qxc7 {[%clk 0:02:34.9]}
32... Rxc7 {[%clk 0:01:04.8]} 33. fxe6 {[%clk 0:02:31.3]} 33... Rxf2 {[%clk
0:00:56.4]} 34. Kxf2 {[%clk 0:02:32.2]} 34... Kf8 {[%clk 0:00:50.3]} 35. Re4
{[%clk 0:02:31]} 35... Bh3 {[%clk 0:00:35.8]} 36. g4 {[%clk 0:02:31.5]} 36...
Ke7 {[%clk 0:00:33.8]} 37. Rf4 {[%clk 0:02:30.8]} 37... Kxe6 {[%clk 0:00:30.5]}
38. Kg3 {[%clk 0:02:31.4]} 1-0

[Event "Early-Titled-Tuesday-Blitz-May-14-2024"]
[Site "Chess.com"]
[Date "2024.05.14"]
[Round "1"]
[White "scarabee43"]
[Black "TheoSlade"]
[Result "1-0"]
[WhiteElo "2818"]
[BlackElo "2468"]
[TimeControl "180+1"]
[EndTime "8:04:45 PDT"]
[Termination "scarabee43 won by resignation"]

1. Nf3 {[%clk 0:03:00.9]} 1... d5 {[%clk 0:02:59.8]} 2. e3 {[%clk 0:03:00.9]}
2... Nf6 {[%clk 0:02:59.8]} 3. b3 {[%clk 0:03:01.4]} 3... e6 {[%clk 0:02:59.8]}
4. Bb2 {[%clk 0:03:02.2]} 4... Bd6 {[%clk 0:02:59.7]} 5. c4 {[%clk 0:03:02.4]}
5... O-O {[%clk 0:02:59.4]} 6. Nc3 {[%clk 0:03:02.7]} 6... b6 {[%clk 0:02:57.2]}
7. Qc2 {[%clk 0:03:00.8]} 7... a6 {[%clk 0:02:55.1]} 8. g4 {[%clk 0:02:53.3]}
8... dxc4 {[%clk 0:02:40.7]} 9. g5 {[%clk 0:02:43.7]} 9... cxb3 {[%clk
0:02:38.1]} 10. axb3 {[%clk 0:02:43.1]} 10... Nfd7 {[%clk 0:02:33.1]} 11. Bd3
{[%clk 0:02:36.3]} 11... f5 {[%clk 0:02:28.9]} 12. gxf6 {[%clk 0:02:33.8]} 12...
Nxf6 {[%clk 0:02:28.9]} 13. Ne4 {[%clk 0:02:32.7]} 13... Nbd7 {[%clk 0:02:07.6]}
14. Nfg5 {[%clk 0:02:21.6]} 14... Nxe4 {[%clk 0:01:35.1]} 15. Bxe4 {[%clk
0:02:02.6]} 15... Qxg5 {[%clk 0:01:35.1]} 16. Bxa8 {[%clk 0:02:03.2]} 16... Nf6
{[%clk 0:01:04.1]} 17. O-O-O {[%clk 0:02:00.6]} 17... Bd7 {[%clk 0:00:58.2]} 18.
Rhg1 {[%clk 0:01:56.6]} 18... Qf5 {[%clk 0:00:52.2]} 19. Qxf5 {[%clk 0:01:53.2]}
19... exf5 {[%clk 0:00:52.7]} 20. Bf3 {[%clk 0:01:50.5]} 20... Ne4 {[%clk
0:00:50]} 21. Rxg7+ {[%clk 0:01:50.4]} 21... Kh8 {[%clk 0:00:49.6]} 22. Rxd7+
{[%clk 0:01:49.6]} 22... Nf6 {[%clk 0:00:41.2]} 23. Rg1 {[%clk 0:01:48.8]} 1-0

[Event "Early-Titled-Tuesday-Blitz-May-14-2024"]
[Site "Chess.com"]
[Date "2024.05.14"]
[Round "1"]
[White "Vesper2018"]
[Black "Oleksandr_Bortnyk"]
[Result "0-1"]
[WhiteElo "2544"]
[BlackElo "3063"]
[TimeControl "180+1"]
[EndTime "8:04:50 PDT"]
[Termination "Oleksandr_Bortnyk won by resignation"]

1. e4 {[%clk 0:02:55.8]} 1... Nf6 {[%clk 0:02:55.7]} 2. e5 {[%clk 0:02:55.6]}
2... Nd5 {[%clk 0:02:55.8]} 3. d4 {[%clk 0:02:56.1]} 3... d6 {[%clk 0:02:56.2]}
4. Nf3 {[%clk 0:02:54.4]} 4... dxe5 {[%clk 0:02:56.5]} 5. Nxe5 {[%clk
0:02:52.3]} 5... c6 {[%clk 0:02:56.9]} 6. Be2 {[%clk 0:02:49.4]} 6... Bf5 {[%clk
0:02:55.5]} 7. O-O {[%clk 0:02:45.9]} 7... Nd7 {[%clk 0:02:55.2]} 8. Nf3 {[%clk
0:02:45]} 8... e6 {[%clk 0:02:55.4]} 9. c4 {[%clk 0:02:44.8]} 9... N5f6 {[%clk
0:02:55.7]} 10. Nc3 {[%clk 0:02:44.9]} 10... Bd6 {[%clk 0:02:56]} 11. Bd3 {[%clk
0:02:38.7]} 11... Bg6 {[%clk 0:02:52.2]} 12. Re1 {[%clk 0:02:35.7]} 12... O-O
{[%clk 0:02:51.6]} 13. Bxg6 {[%clk 0:02:31.1]} 13... hxg6 {[%clk 0:02:52.5]} 14.
Bg5 {[%clk 0:02:31]} 14... Qa5 {[%clk 0:02:51.6]} 15. Qc2 {[%clk 0:02:17.4]}
15... Rfe8 {[%clk 0:02:51]} 16. a3 {[%clk 0:02:15.7]} 16... Rac8 {[%clk
0:02:47.6]} 17. b4 {[%clk 0:02:14]} 17... Qa6 {[%clk 0:02:43]} 18. c5 {[%clk
0:02:12.4]} 18... Bb8 {[%clk 0:02:33.8]} 19. Ne4 {[%clk 0:02:10.6]} 19... Nd5
{[%clk 0:02:11.8]} 20. Ng3 {[%clk 0:02:05.1]} 20... e5 {[%clk 0:02:06.8]} 21.
Re2 {[%clk 0:01:52.6]} 21... Nxb4 {[%clk 0:02:03.4]} 22. Qe4 {[%clk 0:01:45.5]}
22... Nd5 {[%clk 0:01:53.7]} 23. Qh4 {[%clk 0:01:42.6]} 23... exd4 {[%clk
0:01:49.9]} 24. Rxe8+ {[%clk 0:01:40.2]} 24... Rxe8 {[%clk 0:01:50.8]} 25. Nxd4
{[%clk 0:01:39.9]} 25... Nxc5 {[%clk 0:01:45]} 26. Rd1 {[%clk 0:01:26.8]} 26...
Qa4 {[%clk 0:01:36.1]} 27. Qg4 {[%clk 0:01:20.6]} 27... Nc3 {[%clk 0:01:22.6]}
28. Rc1 {[%clk 0:01:16.1]} 28... Bxg3 {[%clk 0:01:19.1]} 29. hxg3 {[%clk
0:01:10.7]} 29... Qxd4 {[%clk 0:01:18.3]} 0-1